Cogmind - Beta 13 @@@ ROGUE MODE // 2024.04.12 @ 20:53:30 Player: chexo4 Result: Self-destructed Performance ------------- Evolutions (1) 500 Regions Visited (3) 600 Robots Destroyed (15) 75 Value Destroyed (181) 181 Prototype IDs (0) 0 Alien Tech Used (0) 0 Bonus (0) 0 TOTAL SCORE: 1356 Bonus ------- None Cogmind --------- Core Integrity 315/400 Matter 300/300 Energy 125/125 System Corruption 3% Temperature Cool (0) Movement Rolling (90) Location -9/Materials Parts ------- > --- POWER (1) -------- Light Ion Engine > --- PROPULSION (4) --- Wheel Compact Wheel Armored Wheel > --- UTILITY (2) ------ Small Storage Unit > --- WEAPON (2) ------- Small Laser Light Assault Rifle > --- INVENTORY (8) ---- Light Ion Engine Wheel Improved Terrain Scanner Seismic Detector Assault Rifle Mining Laser Peak State ------------ > --- POWER ------------ Light Ion Engine > --- PROPULSION ------- Wheel Compact Wheel Compact Wheel Armored Wheel > --- UTILITY ---------- Small Storage Unit Seismic Detector > --- WEAPON ----------- Small Laser Light Assault Rifle > --- INVENTORY -------- Wheel Small Matter Pod Improved Terrain Scanner Seismic Detector Assault Rifle Mining Laser [Rating: 10] Favorites ----------- Power Light Ion Engine Engine Light Ion Engine Propulsion Compact Wheel Wheel Compact Wheel Utility Small Storage Unit Device Seismic Detector Storage Small Storage Unit Weapon Small Laser Energy Gun Small Laser Ballistic Gun Light Assault Rifle Build | -11 -10 -10 -9 ------- Run | Yrd Mat Min Mat Slots Evolved 2 | . . . 2 Power . | . . . . Propulsion 2 | . . . 2 Utility . | . . . . Weapon . | . . . . Parts Attached 20 | 7 . 7 6 Power 3 | 1 . 1 1 Engine 3 | 1 . 1 1 Core . | . . . . Reactor . | . . . . Propulsion 11 | 2 . 4 5 Treads . | . . . . Leg . | . . . . Wheel 11 | 2 . 4 5 Hover . | . . . . Flight . | . . . . Utility 4 | 2 . 2 . Device 1 | 1 . . . Storage 3 | 1 . 2 . Processor . | . . . . Hackware . | . . . . Protection . | . . . . Artifact . | . . . . Weapon 2 | 2 . . . Energy Gun 1 | 1 . . . Energy Cannon . | . . . . Ballistic Gun 1 | 1 . . . Ballistic Cannon . | . . . . Launcher . | . . . . Special Weapon . | . . . . Impact Weapon . | . . . . Slashing Weapon . | . . . . Piercing Weapon . | . . . . Special Melee Weapon . | . . . . Unidentified Prototypes . | . . . . Parts Lost 5 | . . 3 2 Power 1 | . . 1 . Propulsion 3 | . . 2 1 Utility 1 | . . . 1 Weapon . | . . . . Highest Loss Streak 3 | . . 3 2 To Critical Strikes . | . . . . Average Slot Usage (%) 97 | . 100 98 94 Engine 12 | . 14 13 11 Wheel 30 | . 28 26 42 Device 12 | . 14 14 7 Storage 13 | . 14 14 11 Energy Gun 13 | . 14 14 11 Ballistic Gun 13 | . 14 14 11 Naked Turns . | . . . . Heaviest Build 86 | 11 11 86 11 Greatest Support 48 | 20 20 32 48 Greatest Overweight (x) 2 | . . 2 . Average Overweight (x) . | . . . . Largest Inventory Capacity 25 | 8 8 25 8 Average Capacity 8 | 7 8 8 8 Most Carried 8 | 7 7 8 8 Average Carried 5 | 3 7 6 5 Final Capacity 8 | 8 8 8 8 Final Carried 7 | 7 7 7 6 Class Distribution -------------------- 82% | Mutant 17% | Scavenger-Mutant Dominant Class ---------------- Mutant | -10/Materials Mutant | -10/Mines Scavenger-Mutant | -9/Materials Resources | -11 -10 -10 -9 ----------- Run | Yrd Mat Min Mat Matter Collected 434 | 218 . 143 73 Remotely . | . . . . Salvage Created 493 | 118 . 180 195 Parts 26 | 8 . 5 13 Haulers Intercepted . | . . . . Recyclers Shooed 2 | . . 1 1 Parts Field Recycled . | . . . . Retrieved Matter . | . . . . Parts Self-Destructed . | . . . . Prevented . | . . . . Kills | -11 -10 -10 -9 ------- Run | Yrd Mat Min Mat Combat Hostiles Destroyed 8 | . . 2 6 Guns 8 | . . 2 6 Classes Destroyed 5 | 2 . 1 2 Worker 1 | . . . 1 Tunneler 3 | 3 . . . Recycler 3 | 1 . 1 1 Swarmer 6 | . . . 6 Grunt 2 | . . 2 . Best Kill Streak 3 | 2 . 1 3 Combat Bots Only 3 | . . 1 3 Max Kills in Single Turn 1 | 1 . 1 1 Gunslinging . | . . . . Exploded . | . . . . Melee . | . . . . Uniques/NPCs Destroyed . | . . . . Combat | -11 -10 -10 -9 -------- Run | Yrd Mat Min Mat Hostile Shots Fired 91 | . . 39 52 Missed 20 | . . 6 14 Damage Taken 785 | . . 460 325 Core 296 | . . 211 85 Absorbed by Shields . | . . . . Core Remaining (%) 57 | 100 . 15 . Volleys Fired 65 | 16 . 21 28 Largest 2 | 2 . 2 2 Hottest 60 | 60 . 60 60 Shots Fired 130 | 32 . 42 56 Gun 130 | 32 . 42 56 Cannon . | . . . . Launcher . | . . . . Special . | . . . . Kinetic 65 | 16 . 21 28 Thermal 65 | 16 . 21 28 Explosive . | . . . . Electromagnetic . | . . . . Robot Hit Streak 6 | 5 . 5 6 Robot Miss Streak 7 | 2 . 3 7 Penetration Max . | . . . . Secondary Targets 1 | . . . 1 Max Gunslinging Chain 1 | . . . 1 Shots Hit Robots 72 | 20 . 25 27 Core Hits 25 | 6 . 8 11 Critical Kills . | . . . . Critical Parts Destroyed . | . . . . Critical Strikes . | . . . . Melee Attacks . | . . . . Impact . | . . . . Slashing . | . . . . Piercing . | . . . . Sneak Attacks . | . . . . Combat Hostiles . | . . . . Follow-up Attacks . | . . . . Damage Inflicted 738 | 225 . 238 275 Guns 723 | 225 . 238 260 Cannons . | . . . . Explosions . | . . . . Melee . | . . . . Ramming 15 | . . . 15 Kinetic 299 | 94 . 114 91 Thermal 424 | 131 . 124 169 Explosive . | . . . . Electromagnetic . | . . . . Impact . | . . . . Slashing . | . . . . Piercing . | . . . . Highest Corruption 3 | . . . 3 Average Corruption 1 | . . . 1 Corruption Purged . | . . . . Corruption Blocked . | . . . . Effects 2 | . . . 2 Parts Rejected 1 | . . . 1 Data Loss (minor) 1 | . . . 1 Overload Shots . | . . . . Overflow Damage . | . . . . Projectiles . | . . . . Explosions . | . . . . Melee . | . . . . Knockbacks . | . . . . Impact . | . . . . Kinetic . | . . . . Secondary . | . . . . Self-Inflicted Damage 5 | . . . 5 Shots . | . . . . Rammed 9 | . . . 9 Targets Rammed 9 | . . . 9 Kicked . | . . . . Crushed . | . . . . Highest Temperature 249 | 40 . 249 28 Average Temperature 63 | 18 . 133 12 Received Heat Transfer 294 | . . 276 18 Effects 1 | . . 1 . Energy Bleed 1 | . . 1 . Siege Activations . | . . . . Robots Corrupted . | . . . . Combat Hostiles . | . . . . Parts Fried . | . . . . Impact Corruptions . | . . . . Robots Melted . | . . . . Combat Hostiles . | . . . . Parts Melted 1 | . . . 1 Heat Transferred 950 | 300 . 275 375 Parts Sabotaged . | . . . . Parts Stolen . | . . . . Parts Stripped . | . . . . Power Chain Reactions . | . . . . Alert | -11 -10 -10 -9 ------- Run | Yrd Mat Min Mat Peak Influence 220 | 20 31 37 220 Initial 13 | . 13 12 . Average 33 | 7 30 14 114 Maximum Alert Level 1 | . . . 1 Low Security (%) 93 | 100 100 100 67 Level 1 6 | . . . 32 Level 2 . | . . . . Level 3 . | . . . . Level 4 . | . . . . Level 5 . | . . . . High Security . | . . . . Max Security . | . . . . Squads Dispatched . | . . . . Investigation . | . . . . Extermination . | . . . . Reinforcement . | . . . . Assault . | . . . . Garrison . | . . . . Intercept . | . . . . Searches Triggered . | . . . . Construction Impeded . | . . . . Haulers Reinforced . | . . . . Active Scanning Responses . | . . . . Cargo Convoy Interrupts . | . . . . Stealth | -11 -10 -10 -9 --------- Run | Yrd Mat Min Mat Distress Signals . | . . . . Communications Jammed . | . . . . Distress Signals . | . . . . Times Spotted 18 | . . 2 16 Peak Tracking Total 6 | . . 2 6 Tactical Retreats 2 | . . . 2 Traps | -11 -10 -10 -9 ------- Run | Yrd Mat Min Mat Traps Triggered . | . . . . Indirectly . | . . . . Trap Hack Attempts . | . . . . Triggered . | . . . . Disarmed . | . . . . Reprogrammed . | . . . . Reused . | . . . . Traps Extracted . | . . . . Installed . | . . . . Triggered . | . . . . Machines | -11 -10 -10 -9 ---------- Run | Yrd Mat Min Mat Machines Disabled . | . . . . Max in Single Turn . | . . . . Machines Repaired . | . . . . Machines Dismantled . | . . . . Machines Sabotaged . | . . . . Overloaded Fab Kills . | . . . . Hacking | -11 -10 -10 -9 --------- Run | Yrd Mat Min Mat Machines Accessed 1 | . 1 . . Terminals 1 | . 1 . . Fabricators . | . . . . Repair Stations . | . . . . Recycling Units . | . . . . Scanalyzers . | . . . . Garrison Access . | . . . . Total Hacks 5 | . 5 . . Successful 3 | . 3 . . Failed 2 | . 2 . . Catastrophic . | . . . . Database Lockouts . | . . . . Manual 4 | . 4 . . Terminals 5 | . 5 . . Fabricators . | . . . . Repair Stations . | . . . . Recycling Units . | . . . . Scanalyzers . | . . . . Garrison Access . | . . . . Terminal Hacks 3 | . 3 . . Branch Access Points 1 | . 1 . . Locate Traps 1 | . 1 . . Zone Layout 1 | . 1 . . Fabricator Hacks . | . . . . Repair Station Hacks . | . . . . Recycling Unit Hacks . | . . . . Scanalyzer . | . . . . Garrison Access Hacks . | . . . . Unauthorized Hacks . | . . . . Terminals . | . . . . Fabricators . | . . . . Repair Stations . | . . . . Recycling Units . | . . . . Scanalyzers . | . . . . Garrison Access . | . . . . Data Cores Recovered . | . . . . Used . | . . . . Hacking Detections 1 | . 1 . . Full Trace Events . | . . . . Feedback Events . | . . . . Feedback Blocked . | . . . . Robot Schematics Acquired . | . . . . Robots Built . | . . . . Authchips . | . . . . Time . | . . . . Total Robot Build Rating . | . . . . Part Schematics Acquired . | . . . . Parts Built . | . . . . Authchips . | . . . . Time . | . . . . Total Part Build Rating . | . . . . Parts Repaired . | . . . . Time . | . . . . Parts Recycled . | . . . . Recycled Matter . | . . . . Retrieved Matter . | . . . . Retrieved Components . | . . . . Parts Scanalyzed . | . . . . Part Schematics Acquired . | . . . . Parts Damaged . | . . . . Bothacking | -11 -10 -10 -9 ------------ Run | Yrd Mat Min Mat Used RIF Installer . | . . . . Robots Hacked . | . . . . Non-combat . | . . . . Combat . | . . . . Robot Hacks Applied . | . . . . Relay Couplers Released . | . . . . Fabnet Peak Effective % . | . . . . Robots Rewired . | . . . . Allies Hacked . | . . . . Hacks Repelled . | . . . . Allies | -11 -10 -10 -9 -------- Run | Yrd Mat Min Mat Total Allies . | . . . . Largest Group . | . . . . Highest-Rated Group . | . . . . Highest-Rated Ally . | . . . . Total Orders . | . . . . Ally Attacks . | . . . . Total Damage . | . . . . Kills . | . . . . Allies Corrupted . | . . . . Allies Melted . | . . . . Intel | -11 -10 -10 -9 ------- Run | Yrd Mat Min Mat Robot Analysis Total . | . . . . Derelict Logs Recovered 1 | . . 1 . Drone Launches . | . . . . Drone Recoveries . | . . . . Exploration | -11 -10 -10 -9 ------------- Run | Yrd Mat Min Mat Turns Passed 1296 | 186 45 810 255 Spaces Moved 1011 | 154 57 649 151 Core 11 | 6 . 5 . Treads . | . . . . Legs . | . . . . Wheels 1000 | 148 57 644 151 Hover . | . . . . Flight . | . . . . Fastest Speed 50 | 50 80 80 87 Average Speed 90 | 78 80 94 87 Slowest Speed 150 | 80 80 150 100 Overloaded Moves . | . . . . Propulsion Burnouts . | . . . . Robots Hopped . | . . . . Cave-ins Triggered . | . . . . Exploration Rate (%) 30 | 6 14 90 12 Regions Visited 3 Branch Regions 1 Pre-discovered Areas . | . . . . Known Exits Taken 1 | . 1 . . Unknown Exits Taken 2 | 1 . 1 . Scrap Searched 1 | . . 1 . Spaces Dug . | . . . . Terrain Destroyed . | . . . . Melee . | . . . . Projectile . | . . . . AOE . | . . . . Terrain Rammed . | . . . . Walls Destroyed . | . . . . Machines Disabled . | . . . . Actions | -11 -10 -10 -9 --------- Run | Yrd Mat Min Mat Total 1273 | 189 56 805 223 Wait 145 | . . 124 21 Move 1008 | 153 56 648 151 Hop . | . . . . Pick Up 22 | 13 . 4 5 Fast Attach 1 | 1 . . . Attach 12 | 6 . 3 3 Detach . | . . . . Swap 7 | . . 4 3 Drop 4 | . . 1 3 Fire 65 | 16 . 21 28 Melee . | . . . . Ram 9 | . . . 9 Kick . | . . . . Crush . | . . . . Escape Stasis . | . . . . Rewire . | . . . . Trap . | . . . . Miscellaneous . | . . . . Route ------- -11/Scrapyard -10/Materials -10/Mines (discovered 2 exits: [*Mat x2]) -9/Materials (discovered 1 exit: Min) History --------- Turn | Location | Event 32 | -11/Scrapyard | Discovered new exit (range 15) 187 | -11/Scrapyard | Entered Materials 189 | -10/Materials | Identified exit to Mines 232 | -10/Materials | Entered Mines 302 | -10/Mines | Build established: Mutant 313 | -10/Mines | Core integrity fell below 50% 333 | -10/Mines | Core integrity fell below 20% 357 | -10/Mines | Lost 3 parts (1p2n) 549 | -10/Mines | Discovered new exit (range 15) 706 | -10/Mines | Discovered new exit (range 11) 1042 | -10/Mines | Entered Materials 1042 | -9/Materials | Evolved 2 slots: Propulsion x2 1043 | -9/Materials | Identified exit to Mines 1297 | -9/Materials | Self-destructed Last Messages --------------- Seismic Detector destroyed. Acquired 1 matter. Wheel destroyed. Destroyed Flight Unit. Acquired 1 matter. S-10 Pest destroyed. Acquired 1 matter. S-10 Pest destroyed. Acquired 1 matter. Acquired Wheel. Acquired 10 matter. System corrupted: Component data lost. Slammed into W-16 Scout. Destabilizing: System corrupted (+2). Slammed into W-16 Scout. Acquired 1 matter. Slammed into W-16 Scout. K-01 Serf collects debris. System corrupted: Wheel rejected. K-01 Serf collects debris. Map ----- +----------------------------------------------------+ | ?????????????????????????????????????????????????? | | ?????????????????????????????????????????????????? | | ?????????????????????????????????????????????????? | | ?????????????????????????????????????????????????? | | ?????????????????????????????????????????????????? | | ?????????????????????????????????????????????????? | | ?????????????????????????????????????????????????? | | ?????????????????????????????????????????????????? | | ?????????????????????????????????????????????????? | | ???????????????????????????????????####??????????? | | ???????????????????????????????????# ??????????? | | ???????????????????????????????????# ??????????? | | ???????????????????????????????????# ??????????? | | ???????????????????????????????????# """ #?????? | | ???????????????????????????????????# """ #?????? | | ??????????????? ???????????????????# #?????? | | ???????????????? ??????????????????# """ #?????? | | ????????????????" #????????????????# """ #?????? | | ????????????????? + ???????????????# """ #?????? | | ??????????????????# ??????????????# #?????? | | ??????????????????# r ?????????????# ##??#?? | | ?????????????????## #????????????####+#### # #?? | | ?????????????????# ############## =### #### | | ?????????????????# # | | ?????????????????# ga # | | ?????????????????# @ # | | ?????????????????# ###+########## ######## | | ?????????????????##????# % ## #####??????? | | ???????????????????????# = ## #??????????? | | ???????????????????????# ## #??????????? | | ???????????????????????# ## #??????????? | | ???????????????????????# ## #??????????? | | ???????????????????????# +%%###########? | | ???????????????????????##############%## #? | | ???????????????????????????# # ## #? | | ???????????????????????????# """ #%## #? | | ???????????????????????????# """ #%## #? | | ???????????????????????????# """ #%## #? | | ???????????????????????????# + # #? | | ???????????????????????????# " " # # = #? | | ???????????????????????????# "R" # + #? | | ???????????????????????????# """ # # #? | | ???????????????????????????# # ###+######? | | ???????????????????????????########## ###### | | ????????????????????????????????????# + | | ????????????????????????????????????# """ ## | | ????????????????????????????????????# """ ## | | ????????????????????????????????????# """ ## | | ????????????????????????????????##### """ # | | ????????????????????????????? # | +----------------------------------------------------+ Best States ------------- Heat Dissipation 28 Energy Generation 10 Energy Capacity 125 Matter Stores 300 Matter Capacity 300 Sight Range 16 Terrain Scan Density 10 Evasion (%) 44 Item Schematics ----------------- None Robot Schematics ------------------ None Fabricated ------------ Nothing Alien Tech Used ----------------- None Achievements -------------- None Challenges ------------ None Game ------ Seed ReflectiveDeliveryMatrix Manual? 0 Play Time 00:09:44 Cumulative 21.3 hours Start 2024.04.12 @ 20:45:16 End 2024.04.12 @ 20:53:30 Sessions 1 Manual Loads 0 Difficulty Rogue Special Mode None Game No. 59 Rogue 59 Adventurer 0 Explorer 0 Win Type - Total 0 Types 0/0/0/0/0/0/0/0/0 Lore% 19 Gallery% 28 Achievement% 22 Wizard Run 0 Options --------- Layout 1 ASCII 0 Keyboard 0 Movement Arrows Keybinds 0 Fullscreen 2 Font 24/Smallcaps Map View 50x35 Zoom Use 0% Tactical HUD 0 Map Filters NONE Filters NONE Steam 1 RUN: 2971f577-ee93-4d6f-a894-b4c33a04d64f